Cogmind - Beta 15 @@@ ROGUE MODE // 2025.08.07 @ 13:13:34 // Halloween2019/Abominations Player: H3-RMN Result: Destroyed by Lesser Abomination with Etherial Claws Performance ------------- Evolutions (0) 0 Regions Visited (1) 200 Robots Destroyed (4) 20 Value Destroyed (143) 143 Prototype IDs (0) 0 Alien Tech Used (0) 0 Bonus (0) 0 TOTAL SCORE: 363 Bonus ------- None Cogmind --------- Core Integrity 0/250 Matter 258/300 Energy 74/100 System Corruption 0% Temperature Cool (0) Movement Treading (160) Location -10/Materials Parts ------- > --- POWER (1) -------- (None) > --- PROPULSION (2) --- Light Treads > --- UTILITY (2) ------ Small Storage Unit Seismic Detector > --- WEAPON (2) ------- Light Assault Rifle > --- INVENTORY (8) ---- Ion Engine Compact Wheel Grenade Launcher Peak State ------------ > --- POWER ------------ Ion Engine > --- PROPULSION ------- Compact Wheel Compact Wheel > --- UTILITY ---------- Small Storage Unit Seismic Detector > --- WEAPON ----------- Medium Laser Assault Rifle > --- INVENTORY -------- Ion Engine Light Treads Light Treads Aluminum Leg Compact Wheel Assault Rifle Grenade Launcher [Rating: 7] Favorites ----------- Power Ion Engine Engine Ion Engine Propulsion Compact Wheel Treads Light Treads Leg Aluminum Leg Wheel Compact Wheel Utility Small Storage Unit Device Seismic Detector Storage Small Storage Unit Weapon Assault Rifle Energy Gun Medium Laser Ballistic Gun Assault Rifle Build | -11 -10 ------- Run | Yrd Mat Slots Evolved . | . . Power . | . . Propulsion . | . . Utility . | . . Weapon . | . . Parts Attached 12 | 6 6 Power 1 | . 1 Engine 1 | . 1 Core . | . . Reactor . | . . Propulsion 5 | 2 3 Treads 2 | . 2 Leg 1 | . 1 Wheel 2 | 2 . Hover . | . . Flight . | . . Utility 2 | 2 . Device 1 | 1 . Storage 1 | 1 . Processor . | . . Hackware . | . . Protection . | . . Artifact . | . . Weapon 4 | 2 2 Energy Gun 1 | 1 . Energy Cannon . | . . Ballistic Gun 3 | 1 2 Ballistic Cannon . | . . Launcher . | . . Special Weapon . | . . Impact Weapon . | . . Slashing Weapon . | . . Piercing Weapon . | . . Special Melee Weapon . | . . Unidentified Prototypes . | . . Parts Lost 8 | . 8 Power 1 | . 1 Propulsion 4 | . 4 Utility . | . . Weapon 3 | . 3 Highest Loss Streak 8 | . 8 To Critical Strikes . | . . Average Backups 6 | 4 7 Power 1 | 1 1 Propulsion 3 | 2 3 Utility . | . . Weapon 1 | . 2 Tool/Special . | . . Unused Backups 3 | . 3 Power 1 | . 1 Propulsion 1 | . 1 Utility . | . . Weapon 1 | . 1 Tool/Special . | . . Average Slot Usage (%) 92 | . 92 Engine 9 | . 9 Treads 2 | . 2 Leg 1 | . 1 Wheel 22 | . 22 Device 14 | . 14 Storage 14 | . 14 Energy Gun 11 | . 11 Ballistic Gun 16 | . 16 Peak Build Rating 7 | 6 7 Average Rating 5 | 4 6 On Entrance 3 | . 6 Naked Turns . | . . Heaviest Build 15 | 10 15 Greatest Support 32 | 32 32 Greatest Overweight (x) . | . . Average Overweight (x) . | . . Largest Inventory Capacity 8 | 8 8 Average Capacity 7 | 6 8 Most Carried 8 | 8 8 Average Carried 6 | 5 7 Final Capacity 8 | 8 8 Final Carried 8 | 8 3 Class Distribution -------------------- 100% | Mutant Dominant Class ---------------- Mutant | -10/Materials Resources | -11 -10 ----------- Run | Yrd Mat Matter Collected 352 | 281 71 Remotely . | . . Salvage Created 253 | 117 136 Parts 8 | 6 2 Haulers Intercepted . | . . Recyclers Shooed . | . . Parts Field Recycled . | . . Retrieved Matter . | . . Parts Self-Destructed . | . . Prevented . | . . Kills | -11 -10 ------- Run | Yrd Mat Combat Hostiles Destroyed 2 | . 2 Guns 2 | . 2 Classes Destroyed 3 | 2 1 Tunneler 1 | 1 . Recycler 1 | 1 . Abomination 2 | . 2 Best Kill Streak 2 | 2 2 Combat Bots Only 2 | . 2 Max Kills in Single Turn 1 | 1 1 Gunslinging . | . . Exploded . | . . Melee . | . . Uniques/NPCs Destroyed . | . . Combat | -11 -10 -------- Run | Yrd Mat Hostile Shots Fired 42 | . 42 Missed 10 | . 10 Hits 32 | . 32 Melee 32 | . 32 Critical Strikes 6 | . 6 Damage Taken 1140 | . 1140 Core 270 | . 270 Absorbed by Shields . | . . Core Remaining (%) 100 | 100 . Volleys Fired 28 | 7 21 Largest 2 | 2 2 Hottest 70 | 70 70 Shots Fired 56 | 14 42 Gun 56 | 14 42 Cannon . | . . Launcher . | . . Special . | . . Kinetic 33 | 7 26 Thermal 23 | 7 16 Explosive . | . . Electromagnetic . | . . Robot Hit Streak 8 | 4 8 Robot Miss Streak 3 | 3 3 Penetration Max . | . . Secondary Targets 1 | . 1 Max Gunslinging Chain 1 | . 1 Shots Hit Robots 34 | 7 27 Core Hits 16 | 3 13 Critical Kills . | . . Critical Parts Destroyed 1 | . 1 Critical Strikes 2 | 1 1 Burn 1 | 1 . Destroy 1 | . 1 Melee Attacks . | . . Impact . | . . Slashing . | . . Piercing . | . . Sneak Attacks . | . . Combat Hostiles . | . . Follow-up Attacks . | . . Damage Inflicted 471 | 116 355 Guns 471 | 116 355 Cannons . | . . Explosions . | . . Melee . | . . Ramming . | . . Kinetic 287 | 54 233 Thermal 184 | 62 122 Explosive . | . . Electromagnetic . | . . Impact . | . . Slashing . | . . Piercing . | . . Highest Corruption . | . . Average Corruption . | . . Corruption Purged . | . . Corruption Blocked . | . . Overload Shots . | . . Overflow Damage . | . . Projectiles . | . . Explosions . | . . Melee . | . . Knockbacks . | . . Impact . | . . Kinetic . | . . Secondary . | . . Self-Inflicted Damage . | . . Shots . | . . Rammed . | . . Targets Rammed . | . . Kicked . | . . Crushed . | . . Highest Temperature 72 | 21 72 Average Temperature 29 | 11 33 Received Heat Transfer . | . . Siege Activations . | . . Martial Activations . | . . Shielding Activations . | . . Robots Disrupted . | . . Combat Hostiles . | . . Robots Corrupted . | . . Combat Hostiles . | . . Parts Fried . | . . Impact Corruptions . | . . Robots Melted . | . . Combat Hostiles . | . . Parts Melted . | . . Heat Transferred 331 | 259 72 Parts Sabotaged . | . . Parts Stolen . | . . Parts Stripped . | . . Power Chain Reactions . | . . Alert | -11 -10 ------- Run | Yrd Mat Maximum Alert Level . | . . Low Security (%) 100 | 100 100 Level 1 . | . . Level 2 . | . . Level 3 . | . . Level 4 . | . . Level 5 . | . . High Security . | . . Max Security . | . . Peak Influence 15 | 10 15 Initial . | . . Average 2 | 1 2 Influence Increases 25 | 10 15 Destroy 0b10 Robot/NC 10 | 10 . Disable Machine 15 | . 15 Influence Decreases 25 | 10 15 Time Decay 20 | 10 10 Lost Part 5 | . 5 Squads Dispatched 3 | . 3 Investigation 2 | . 2 Extermination . | . . Reinforcement 1 | . 1 Assault . | . . Garrison . | . . Intercept . | . . Searches Triggered . | . . Construction Impeded . | . . Haulers Reinforced . | . . Active Scanning Responses . | . . Cargo Convoy Interrupts . | . . Stealth | -11 -10 --------- Run | Yrd Mat Distress Signals 2 | . 2 Communications Jammed . | . . Distress Signals . | . . Times Spotted 7 | . 7 Peak Tracking Total 6 | . 6 Tactical Retreats . | . . Traps | -11 -10 ------- Run | Yrd Mat Traps Triggered . | . . Indirectly . | . . Trap Hack Attempts . | . . Triggered . | . . Disarmed . | . . Reprogrammed . | . . Reused . | . . Traps Extracted . | . . Installed . | . . Triggered . | . . Machines | -11 -10 ---------- Run | Yrd Mat Machines Disabled 1 | . 1 Max in Single Turn 1 | . 1 Machines Repaired . | . . Machines Dismantled . | . . Machines Sabotaged . | . . Overloaded Fab Kills . | . . Hacking | -11 -10 --------- Run | Yrd Mat Machines Accessed . | . . Terminals . | . . Fabricators . | . . Repair Stations . | . . Recycling Units . | . . Scanalyzers . | . . Garrison Access . | . . Total Hacks . | . . Successful . | . . Failed . | . . Catastrophic . | . . Database Lockouts . | . . Manual . | . . Terminals . | . . Fabricators . | . . Repair Stations . | . . Recycling Units . | . . Scanalyzers . | . . Garrison Access . | . . Terminal Hacks . | . . Fabricator Hacks . | . . Repair Station Hacks . | . . Recycling Unit Hacks . | . . Scanalyzer . | . . Garrison Access Hacks . | . . Unauthorized Hacks . | . . Terminals . | . . Fabricators . | . . Repair Stations . | . . Recycling Units . | . . Scanalyzers . | . . Garrison Access . | . . Data Cores Recovered . | . . Used . | . . Hacking Detections . | . . Full Trace Events . | . . Feedback Events . | . . Feedback Blocked . | . . Robot Schematics Acquired . | . . Robots Built . | . . Authchips . | . . Time . | . . Total Robot Build Rating . | . . Part Schematics Acquired . | . . Parts Built . | . . Authchips . | . . Time . | . . Total Part Build Rating . | . . Parts Repaired . | . . Time . | . . Parts Recycled . | . . Recycled Matter . | . . Retrieved Matter . | . . Retrieved Components . | . . Parts Scanalyzed . | . . Part Schematics Acquired . | . . Parts Damaged . | . . Bothacking | -11 -10 ------------ Run | Yrd Mat Used RIF Installer . | . . Robots Hacked . | . . Non-combat . | . . Combat . | . . Robot Hacks Applied . | . . Relay Couplers Released . | . . Fabnet Peak Effective % . | . . Robots Rewired . | . . Allies Hacked . | . . Hacks Repelled . | . . Allies | -11 -10 -------- Run | Yrd Mat Total Allies . | . . Largest Group . | . . Highest-Rated Group . | . . Highest-Rated Ally . | . . Total Orders . | . . Ally Attacks . | . . Total Damage . | . . Kills . | . . Allies Corrupted . | . . Allies Melted . | . . Intel | -11 -10 ------- Run | Yrd Mat Active Infowar (turns) 126 | 13 113 Seismic 126 | 13 113 Robot Analysis Total . | . . Derelict Logs Recovered . | . . Drone Launches . | . . Drone Recoveries . | . . Exploration | -11 -10 ------------- Run | Yrd Mat Turns Passed 201 | 88 113 Spaces Moved 84 | 51 33 Core 1 | 1 . Treads . | . . Legs . | . . Wheels 83 | 50 33 Hover . | . . Flight . | . . Fastest Speed 50 | 50 100 Average Speed 99 | 99 100 Slowest Speed 100 | 100 100 Overloaded Moves . | . . Propulsion Burnouts . | . . Robots Hopped . | . . Potential Cave-ins . | . . Cave-ins Triggered . | . . Exploration Rate (%) 8 | 4 13 Regions Visited 1 Branch Regions . Pre-discovered Areas . | . . Known Exits Taken . | . . Unknown Exits Taken 1 | 1 . Scrap Searched . | . . Spaces Dug . | . . Terrain Destroyed . | . . Melee . | . . Projectile . | . . AOE . | . . Terrain Rammed . | . . Walls Destroyed . | . . Machines Disabled . | . . Actions | -11 -10 --------- Run | Yrd Mat Total 139 | 71 68 Wait 5 | . 5 Move 83 | 50 33 Hop . | . . Pick Up 10 | 8 2 Fast Attach 6 | 6 . Attach 6 | . 6 Detach . | . . Swap . | . . Drop 1 | . 1 Fire 28 | 7 21 Melee . | . . Ram . | . . Kick . | . . Crush . | . . Escape Stasis . | . . Rewire . | . . Trap . | . . Miscellaneous . | . . Route ------- -11/Scrapyard -10/Materials History --------- Turn | Location | Event 24 | -11/Scrapyard | Discovered new exit (range 16) 89 | -11/Scrapyard | Entered Materials 201 | -10/Materials | Core integrity fell below 50% 202 | -10/Materials | Core integrity fell below 20% 202 | -10/Materials | Destroyed by Lesser Abomination with Etherial Claws Last Messages --------------- 00178_ Acquired 3 matter. 00180_ Frozen by Ice Anomaly. 00180_ Com. Wheel destroyed. 00181_ Critical hit (Intensify). 00181_ Ion Engine destroyed. 00184_ Critical hit (Intensify). 00184_ Med. Laser destroyed. 00186_ Assault Rifle destroyed. 00187_ Acquired 3 matter. 00188_ Aluminum Leg destroyed. 00189_ Parts repaired by Paradox Anomaly. 00192_ Lesser Abomination suffers critical hit (Destroy). 00192_ Destroyed Imp. Terrain Scanner. 00194_ 18 Matter blinks away. 00200_ Critical hit (Intensify). 00200_ Lgt. Treads destroyed. 00202_ Critical hit (Intensify). 00202_ Assault Rifle destroyed. 00202_ Critical hit (Intensify). Map ----- +----------------------------------------------------+ | ???????????????????????????????????????? | | ???????????????????????????????????????? | | ???????????????????????????????????????? | | ???????????????????????????????????????? | | ???????????????????????????????????????? | | ???????????????????????????????????????? | | ???????????????????????????????????????? | | ???????????????????????????????????????? | | ???????????????????????????????????????? | | ???????????????????????????????????????? | | ???????????????????????????????????????? | | ??????????? ?????????????????????????? | | ?????????# ????? ???????????????????? | | ???????? # ???? "???????????????????? | | ???????""; "??? ""??????????????????? | | ????????"; "?? """ ????????????????? | | ?????????; ? ?? ???????????? | | ?????????; ???????????? | | ?????????? """ """ ??????????? | | ???????????; """ "" #"#"??????????? | | ???????????# """ " " # ????????????? | | ???????????# #?????????????? | | ???????????# #?????????????? | | ???????????# #####??????????? | | ???????????# A + ????????? | | ???????????# % @A A #??????????????? | | ???????????# A #####???????????????? | | ??????????## #???????????????????? | | ??????????# #???????????????????? | | ??????????# #???????????????????? | | ???#####??# """ #???????????????????? | | ???# ?# """ #???????????????????? | | ???# ?# """ #???????????????????? | | ???# """ # #???????????????????? | | ???# """ # #???????????????????? | | ???# """ + """ #???????????????????? | | ???# #" """ #???????????????????? | | ???########T """ #???????????????????? | | ???# #" #???????????????????? | | ???# # +???????????????????? | | ???# """ + #???????????????????? | | ???#= """ # ## ###???????????????????? | | ???# """ # #? #????????????????????? | | ???# #####?? #????????????????????? | | ???########??????##????????????????????? | | ???????????????????????????????????????? | | ???????????????????????????????????????? | | ???????????????????????????????????????? | | ???????????????????????????????????????? | | ???????????????????????????????????????? | +----------------------------------------------------+ Best States ------------- Heat Dissipation 25 Energy Generation 10 Energy Capacity 250 Matter Stores 300 Matter Capacity 300 Sight Range 16 Terrain Scan Density 10 Evasion (%) 40 Recoil Reduction 1 Item Schematics ----------------- None Robot Schematics ------------------ None Fabricated ------------ Nothing Repaired ---------- Nothing Alien Tech Used ----------------- None Achievements -------------- None Challenges ------------ None Game ------ Seed SensorWeldingPenetrator Manual? 0 Play Time 00:04:06 Cumulative 761.5 hours Start 2025.08.07 @ 13:11:11 End 2025.08.07 @ 13:13:34 Sessions 1 Manual Loads 0 Difficulty Rogue Special Mode Halloween2019/Abominations Game No. 293 Rogue 289 Adventurer 4 Explorer 0 Win Type - Total 13 Types 7/1/1/1/0/1/0/1/0/1 Lore% 94 Gallery% 89 Achievement% 87 Wizard Run 0 Options --------- Layout 2 ASCII 0 Keyboard 0 Movement Numpad Keybinds 0 Fullscreen 2 Font 24/Smallcaps Map View 50x44 Zoom Use 0% Tactical HUD 1 Map Filters SHIFT_HUE(80) Filters SHIFT_HUE(280) Steam X RUN: a0822f65-b87b-4f02-a2d3-8d8f2ba987b5